[Event "Titled Tuesday Blitz May 31 Late 2022"]
[White "Rodrigues, Bruno Morado"]
[Black "Korchmar, Vasiliy"]
[WhiteFideId "2115654"]
[BlackFideId "24131750"]
[WhiteElo "2040"]
[BlackElo "2370"]
[Result "0-1"]
[Round "01"]
[TimeControl "180+1"]
[Date "2022.06.01"]
[WhiteClock "0:00:07"]
[BlackClock "0:00:04"]

1. d4 {[%clk 0:02:59]}  d5 {[%clk 0:02:59]} 2. Nc3 {[%clk 0:03:00]}  Nf6 {[%clk 0:02:59]} 3. Bg5 {[%clk 0:03:00]}  Nbd7 {[%clk 0:02:58]} 4. Qd3 {[%clk 0:03:00]}  c6 {[%clk 0:02:53]} 5. f3 {[%clk 0:02:59]}  e5 {[%clk 0:02:47]} 6. dxe5 {[%clk 0:02:59]}  Nxe5 {[%clk 0:02:47]} 7. Qd4 {[%clk 0:03:00]}  Bd6 {[%clk 0:02:40]} 8. e4 {[%clk 0:03:00]}  h6 {[%clk 0:02:28]} 9. Bxf6 {[%clk 0:02:59]}  Qxf6 {[%clk 0:02:28]} 10. exd5 {[%clk 0:03:00]}  O-O {[%clk 0:02:15]} 11. O-O-O {[%clk 0:02:55]}  c5 {[%clk 0:02:02]} 12. Qe3 {[%clk 0:02:33]}  Ng4 {[%clk 0:01:38]} 13. Qe1 {[%clk 0:02:22]}  Ne3 {[%clk 0:01:37]} 14. Ne4 {[%clk 0:02:09]}  Qg6 {[%clk 0:01:29]} 15. Qxe3 {[%clk 0:02:08]}  Be5 {[%clk 0:01:20]} 16. Bd3 {[%clk 0:01:54]}  f5 {[%clk 0:01:11]} 17. Nxc5 {[%clk 0:01:53]}  Qd6 {[%clk 0:01:07]} 18. Ne2 {[%clk 0:01:44]}  b6 {[%clk 0:00:57]} 19. Ne6 {[%clk 0:01:43]}  Bxe6 {[%clk 0:00:54]} 20. dxe6 {[%clk 0:01:44]}  Qc7 {[%clk 0:00:48]} 21. Kb1 {[%clk 0:01:33]}  Rae8 {[%clk 0:00:46]} 22. f4 {[%clk 0:01:26]}  Bf6 {[%clk 0:00:44]} 23. Bxf5 {[%clk 0:01:22]}  Bxb2 {[%clk 0:00:44]} 24. Kxb2 {[%clk 0:01:22]}  Rxf5 {[%clk 0:00:44]} 25. Nd4 {[%clk 0:01:14]}  Ra5 {[%clk 0:00:41]} 26. Qb3 {[%clk 0:00:54]}  Kh8 {[%clk 0:00:39]} 27. f5 {[%clk 0:00:53]}  Qe5 {[%clk 0:00:32]} 28. Rhe1 {[%clk 0:00:50]}  Qf6 {[%clk 0:00:32]} 29. c3 {[%clk 0:00:44]}  a6 {[%clk 0:00:29]} 30. Ka1 {[%clk 0:00:35]}  Rc5 {[%clk 0:00:26]} 31. g4 {[%clk 0:00:32]}  b5 {[%clk 0:00:21]} 32. h4 {[%clk 0:00:29]}  Qxh4 {[%clk 0:00:17]} 33. Qb4 {[%clk 0:00:28]}  Rc4 {[%clk 0:00:14]} 34. Qb3 {[%clk 0:00:23]}  Qf6 {[%clk 0:00:14]} 35. Re3 {[%clk 0:00:21]}  Re7 {[%clk 0:00:12]} 36. Red3 {[%clk 0:00:21]}  Kh7 {[%clk 0:00:10]} 37. Ne2 {[%clk 0:00:21]}  Rec7 {[%clk 0:00:09]} 38. Kb2 {[%clk 0:00:20]}  b4 {[%clk 0:00:09]} 39. Rc1 {[%clk 0:00:20]}  a5 {[%clk 0:00:09]} 40. Nd4 {[%clk 0:00:18]}  bxc3+ {[%clk 0:00:07]} 41. Rcxc3 {[%clk 0:00:18]}  Rxd4 {[%clk 0:00:07]} 42. Rxd4 {[%clk 0:00:05]}  Qxd4 {[%clk 0:00:07]} 43. a4 {[%clk 0:00:05]}  Qd2+ {[%clk 0:00:06]} 44. Rc2 {[%clk 0:00:04]}  Qd4+ {[%clk 0:00:06]} 45. Ka3 {[%clk 0:00:04]}  Qd6+ {[%clk 0:00:05]} 46. Ka2 {[%clk 0:00:04]}  Re7 {[%clk 0:00:04]} 47. Re2 {[%clk 0:00:04]}  Qf4 {[%clk 0:00:04]} 48. Qc2 {[%clk 0:00:03]}  Kh8 {[%clk 0:00:03]} 49. Qc8+ {[%clk 0:00:03]}  Kh7 {[%clk 0:00:04]} 50. Qc2 {[%clk 0:00:03]}  Kg8 {[%clk 0:00:04]} 51. Rd2 {[%clk 0:00:04]}  Re8 {[%clk 0:00:04]} 52. Rd7 {[%clk 0:00:05]}  Kh8 {[%clk 0:00:03]} 53. Ka3 {[%clk 0:00:05]}  Qb4+ {[%clk 0:00:02]} 54. Ka2 {[%clk 0:00:05]}  Qf4 {[%clk 0:00:03]} 55. Qb3 {[%clk 0:00:04]}  Qxg4 {[%clk 0:00:03]} 56. Ka3 {[%clk 0:00:05]}  Qxf5 {[%clk 0:00:03]} 57. Qb2 {[%clk 0:00:05]}  Qc5+ {[%clk 0:00:03]} 58. Ka2 {[%clk 0:00:05]}  Qc4+ {[%clk 0:00:04]} 59. Ka3 {[%clk 0:00:06]}  Qc5+ {[%clk 0:00:04]} 60. Ka2 {[%clk 0:00:06]}  Qc4+ {[%clk 0:00:05]} 61. Qb3 {[%clk 0:00:07]}  Qe2+ {[%clk 0:00:04]} 62. Ka3 {[%clk 0:00:07]}  Qxe6 {[%clk 0:00:04]} 63. Qb2 {[%clk 0:00:07]}  Qxd7 {[%clk 0:00:04]} 64. Ka2 {[%clk 0:00:07]}  Qe7 {[%clk 0:00:04]} 0-1


[Site "https://www.chess.com"]

[Event "Titled Tuesday Blitz May 31 Late 2022"]
[White "Rostovtsev, Dmitry"]
[Black "Jarocka, Liwia"]
[WhiteFideId "34278320"]
[BlackFideId "21807558"]
[WhiteElo "2274"]
[BlackElo "1887"]
[Result "1-0"]
[Round "01"]
[TimeControl "180+1"]
[Date "2022.06.01"]
[WhiteClock "0:01:09"]
[BlackClock "0:00:08"]

1. e4 {[%clk 0:02:58]}  e6 {[%clk 0:02:56]} 2. d4 {[%clk 0:02:56]}  d5 {[%clk 0:02:55]} 3. Nd2 {[%clk 0:02:52]}  Nf6 {[%clk 0:02:55]} 4. e5 {[%clk 0:02:50]}  Nfd7 {[%clk 0:02:55]} 5. Bd3 {[%clk 0:02:50]}  c5 {[%clk 0:02:55]} 6. c3 {[%clk 0:02:51]}  Nc6 {[%clk 0:02:55]} 7. Ne2 {[%clk 0:02:51]}  cxd4 {[%clk 0:02:52]} 8. cxd4 {[%clk 0:02:52]}  f6 {[%clk 0:02:53]} 9. exf6 {[%clk 0:02:51]}  Nxf6 {[%clk 0:02:54]} 10. Nf3 {[%clk 0:02:51]}  Bd6 {[%clk 0:02:45]} 11. O-O {[%clk 0:02:51]}  O-O {[%clk 0:02:46]} 12. Bg5 {[%clk 0:02:50]}  Bd7 {[%clk 0:02:37]} 13. a3 {[%clk 0:02:49]}  Rc8 {[%clk 0:02:36]} 14. b4 {[%clk 0:02:48]}  Be8 {[%clk 0:02:34]} 15. Ng3 {[%clk 0:02:45]}  h6 {[%clk 0:02:31]} 16. Be3 {[%clk 0:02:44]}  Ng4 {[%clk 0:02:28]} 17. Re1 {[%clk 0:02:44]}  Nxe3 {[%clk 0:02:28]} 18. Rxe3 {[%clk 0:02:45]}  Bf7 {[%clk 0:02:26]} 19. Bb1 {[%clk 0:02:43]}  Ne7 {[%clk 0:02:20]} 20. Ne5 {[%clk 0:02:42]}  Bxe5 {[%clk 0:02:19]} 21. Rxe5 {[%clk 0:02:43]}  Qd6 {[%clk 0:02:10]} 22. Bd3 {[%clk 0:02:37]}  Bg6 {[%clk 0:02:06]} 23. Qd2 {[%clk 0:02:33]}  Rce8 {[%clk 0:01:59]} 24. Rae1 {[%clk 0:02:31]}  Bxd3 {[%clk 0:01:59]} 25. Qxd3 {[%clk 0:02:32]}  Nc6 {[%clk 0:01:59]} 26. R5e2 {[%clk 0:02:31]}  Qf4 {[%clk 0:01:53]} 27. Rxe6 {[%clk 0:02:30]}  Rxe6 {[%clk 0:01:48]} 28. Rxe6 {[%clk 0:02:30]}  Qxf2+ {[%clk 0:01:47]} 29. Kh1 {[%clk 0:02:29]}  Nxd4 {[%clk 0:01:45]} 30. Re3 {[%clk 0:02:16]}  Kh8 {[%clk 0:01:30]} 31. h3 {[%clk 0:02:11]}  Nf5 {[%clk 0:01:18]} 32. Nxf5 {[%clk 0:02:08]}  Qxf5 {[%clk 0:01:17]} 33. Qxf5 {[%clk 0:02:04]}  Rxf5 {[%clk 0:01:18]} 34. Re7 {[%clk 0:02:04]}  Rf1+ {[%clk 0:01:16]} 35. Kh2 {[%clk 0:02:04]}  Ra1 {[%clk 0:01:16]} 36. Re3 {[%clk 0:01:55]}  Rd1 {[%clk 0:01:10]} 37. Kg3 {[%clk 0:01:53]}  d4 {[%clk 0:01:07]} 38. Re8+ {[%clk 0:01:50]}  Kh7 {[%clk 0:01:06]} 39. Kf4 {[%clk 0:01:51]}  Ra1 {[%clk 0:00:57]} 40. Re7 {[%clk 0:01:48]}  Rxa3 {[%clk 0:00:49]} 41. Rxb7 {[%clk 0:01:48]}  Ra4 {[%clk 0:00:48]} 42. Ke4 {[%clk 0:01:46]}  Kg6 {[%clk 0:00:46]} 43. g4 {[%clk 0:01:35]}  Kf6 {[%clk 0:00:46]} 44. h4 {[%clk 0:01:35]}  g5 {[%clk 0:00:45]} 45. h5 {[%clk 0:01:33]}  a5 {[%clk 0:00:39]} 46. bxa5 {[%clk 0:01:21]}  Rxa5 {[%clk 0:00:38]} 47. Rh7 {[%clk 0:01:22]}  Ra1 {[%clk 0:00:15]} 48. Rxh6+ {[%clk 0:01:22]}  Kf7 {[%clk 0:00:16]} 49. Rg6 {[%clk 0:01:14]}  Ra5 {[%clk 0:00:15]} 50. Kxd4 {[%clk 0:01:14]}  Rb5 {[%clk 0:00:16]} 51. Ke4 {[%clk 0:01:14]}  Ra5 {[%clk 0:00:16]} 52. Rd6 {[%clk 0:01:09]}  Kg7 {[%clk 0:00:14]} 53. Rd5 {[%clk 0:01:08]}  Ra1 {[%clk 0:00:08]} 54. Kf5 {[%clk 0:01:08]}  Kh6 {[%clk 0:00:08]} 55. Rd6+ {[%clk 0:01:08]}  Kh7 {[%clk 0:00:08]} 56. Kxg5 {[%clk 0:01:09]} 1-0


[Site "https://www.chess.com"]

[Event "Titled Tuesday Blitz May 31 Late 2022"]
[White "Semenenko, Dmytry"]
[Black "Domingo Nunez, Ruben"]
[WhiteFideId "14118645"]
[BlackFideId "22245570"]
[WhiteElo "2113"]
[BlackElo "2376"]
[Result "1-0"]
[Round "01"]
[TimeControl "180+1"]
[Date "2022.06.01"]
[WhiteClock "0:00:29"]
[BlackClock "0:00:15"]

1. Nf3 {[%clk 0:03:00]}  g6 {[%clk 0:02:58]} 2. c4 {[%clk 0:03:00]}  Bg7 {[%clk 0:02:58]} 3. d4 {[%clk 0:03:00]}  d6 {[%clk 0:02:58]} 4. Nc3 {[%clk 0:03:01]}  Nd7 {[%clk 0:02:57]} 5. e4 {[%clk 0:03:01]}  e5 {[%clk 0:02:57]} 6. Be3 {[%clk 0:03:01]}  Ngf6 {[%clk 0:02:56]} 7. dxe5 {[%clk 0:03:01]}  dxe5 {[%clk 0:02:55]} 8. h3 {[%clk 0:03:01]}  O-O {[%clk 0:02:55]} 9. Be2 {[%clk 0:03:01]}  c6 {[%clk 0:02:56]} 10. O-O {[%clk 0:02:59]}  Qe7 {[%clk 0:02:56]} 11. Qc2 {[%clk 0:02:58]}  Re8 {[%clk 0:02:51]} 12. Rad1 {[%clk 0:02:58]}  Nh5 {[%clk 0:02:38]} 13. Rfe1 {[%clk 0:02:49]}  Nf4 {[%clk 0:02:38]} 14. Bf1 {[%clk 0:02:48]}  Nf8 {[%clk 0:02:37]} 15. a3 {[%clk 0:02:46]}  N8e6 {[%clk 0:02:33]} 16. b4 {[%clk 0:02:45]}  Ng5 {[%clk 0:02:13]} 17. Nxg5 {[%clk 0:02:36]}  Qxg5 {[%clk 0:02:14]} 18. Kh2 {[%clk 0:02:36]}  Qh5 {[%clk 0:02:04]} 19. Ne2 {[%clk 0:02:25]}  Ne6 {[%clk 0:02:00]} 20. Ng3 {[%clk 0:02:25]}  Qh4 {[%clk 0:02:01]} 21. Rd6 {[%clk 0:02:12]}  h5 {[%clk 0:01:58]} 22. c5 {[%clk 0:02:05]}  Nd4 {[%clk 0:01:48]} 23. Qd2 {[%clk 0:01:39]}  Bxh3 {[%clk 0:01:40]} 24. Bg5 {[%clk 0:01:39]}  Bh6 {[%clk 0:01:30]} 25. Bxh4 {[%clk 0:01:30]}  Bxd2 {[%clk 0:01:29]} 26. Rd1 {[%clk 0:01:30]}  Bf4 {[%clk 0:00:17]} 27. Kxh3 {[%clk 0:01:27]}  g5 {[%clk 0:00:18]} 28. Nxh5 {[%clk 0:01:21]}  gxh4 {[%clk 0:00:18]} 29. Nf6+ {[%clk 0:01:21]}  Kg7 {[%clk 0:00:19]} 30. Nxe8+ {[%clk 0:01:21]}  Rxe8 {[%clk 0:00:19]} 31. g3 {[%clk 0:01:16]}  hxg3 {[%clk 0:00:19]} 32. fxg3 {[%clk 0:01:16]}  Be3 {[%clk 0:00:19]} 33. Kg2 {[%clk 0:01:11]}  Nc2 {[%clk 0:00:13]} 34. Rd7 {[%clk 0:01:04]}  Bd4 {[%clk 0:00:12]} 35. Rd2 {[%clk 0:01:03]}  Ne3+ {[%clk 0:00:11]} 36. Kg1 {[%clk 0:00:59]}  Nc4+ {[%clk 0:00:11]} 37. R2xd4 {[%clk 0:00:58]}  exd4 {[%clk 0:00:11]} 38. Bxc4 {[%clk 0:00:56]}  Rxe4 {[%clk 0:00:11]} 39. Rxf7+ {[%clk 0:00:56]}  Kg6 {[%clk 0:00:12]} 40. Rxb7 {[%clk 0:00:55]}  Kg5 {[%clk 0:00:12]} 41. Rg7+ {[%clk 0:00:52]}  Kf6 {[%clk 0:00:12]} 42. Rf7+ {[%clk 0:00:50]}  Kg5 {[%clk 0:00:12]} 43. Rf4 {[%clk 0:00:49]}  Re3 {[%clk 0:00:12]} 44. Rxd4 {[%clk 0:00:45]}  Rxg3+ {[%clk 0:00:13]} 45. Kf2 {[%clk 0:00:45]}  Rxa3 {[%clk 0:00:14]} 46. Be2 {[%clk 0:00:39]}  a5 {[%clk 0:00:13]} 47. b5 {[%clk 0:00:35]}  cxb5 {[%clk 0:00:13]} 48. Bxb5 {[%clk 0:00:36]}  Rc3 {[%clk 0:00:14]} 49. c6 {[%clk 0:00:36]}  Kf6 {[%clk 0:00:13]} 50. Rc4 {[%clk 0:00:31]}  Rxc4 {[%clk 0:00:09]} 51. Bxc4 {[%clk 0:00:31]}  Ke7 {[%clk 0:00:10]} 52. Bb5 {[%clk 0:00:31]}  Kd6 {[%clk 0:00:09]} 53. Ke3 {[%clk 0:00:31]}  Kc5 {[%clk 0:00:08]} 54. c7 {[%clk 0:00:30]}  Kxb5 {[%clk 0:00:08]} 55. c8=Q {[%clk 0:00:31]}  Kb6 {[%clk 0:00:09]} 56. Qc3 {[%clk 0:00:30]}  Kb5 {[%clk 0:00:09]} 57. Qa3 {[%clk 0:00:30]}  Kc4 {[%clk 0:00:10]} 58. Qxa5 {[%clk 0:00:30]}  Kb3 {[%clk 0:00:10]} 59. Qc5 {[%clk 0:00:29]}  Kb2 {[%clk 0:00:11]} 60. Qc4 {[%clk 0:00:29]}  Kb1 {[%clk 0:00:12]} 61. Qe2 {[%clk 0:00:28]}  Ka1 {[%clk 0:00:13]} 62. Kd3 {[%clk 0:00:28]}  Kb1 {[%clk 0:00:14]} 63. Kc3 {[%clk 0:00:29]}  Ka1 {[%clk 0:00:15]} 64. Qb2# {[%clk 0:00:29]} 1-0


[Site "https://www.chess.com"]

[Event "Titled Tuesday Blitz May 31 Late 2022"]
[White "Shimanov, Aleksandr"]
[Black "Toncheva, Nadya"]
[WhiteFideId "4198603"]
[BlackFideId "2924056"]
[WhiteElo "2605"]
[BlackElo "1888"]
[Result "1-0"]
[Round "01"]
[TimeControl "180+1"]
[Date "2022.05.31"]
[WhiteClock "0:00:13"]
[BlackClock "0:00:03"]

1. e4 {[%clk 0:02:57]}  Nf6 {[%clk 0:02:58]} 2. e5 {[%clk 0:02:56]}  Nd5 {[%clk 0:02:58]} 3. Qf3 {[%clk 0:02:56]}  e6 {[%clk 0:02:55]} 4. Nc3 {[%clk 0:02:51]}  Nxc3 {[%clk 0:02:40]} 5. dxc3 {[%clk 0:02:52]}  d6 {[%clk 0:02:38]} 6. Bf4 {[%clk 0:02:42]}  dxe5 {[%clk 0:02:30]} 7. Bxe5 {[%clk 0:02:43]}  Qg5 {[%clk 0:02:27]} 8. Bxc7 {[%clk 0:02:37]}  Nc6 {[%clk 0:02:22]} 9. Nh3 {[%clk 0:02:33]}  Qh4 {[%clk 0:01:52]} 10. O-O-O {[%clk 0:02:28]}  Bc5 {[%clk 0:01:48]} 11. Bg3 {[%clk 0:02:10]}  Qa4 {[%clk 0:01:39]} 12. Kb1 {[%clk 0:02:11]}  O-O {[%clk 0:01:27]} 13. Bd3 {[%clk 0:02:10]}  g6 {[%clk 0:01:08]} 14. Ng5 {[%clk 0:02:08]}  e5 {[%clk 0:01:01]} 15. Qd5 {[%clk 0:02:00]}  Be7 {[%clk 0:01:01]} 16. Bb5 {[%clk 0:01:40]}  Qg4 {[%clk 0:00:58]} 17. h4 {[%clk 0:01:37]}  Bxg5 {[%clk 0:00:42]} 18. hxg5 {[%clk 0:01:38]}  Be6 {[%clk 0:00:40]} 19. Qc5 {[%clk 0:01:35]}  Qxg5 {[%clk 0:00:33]} 20. Bxc6 {[%clk 0:01:33]}  bxc6 {[%clk 0:00:33]} 21. Qxe5 {[%clk 0:01:31]}  Qxe5 {[%clk 0:00:25]} 22. Bxe5 {[%clk 0:01:32]}  Bd5 {[%clk 0:00:25]} 23. f3 {[%clk 0:01:30]}  Rfe8 {[%clk 0:00:20]} 24. Bd4 {[%clk 0:01:29]}  f5 {[%clk 0:00:17]} 25. Rd2 {[%clk 0:01:25]}  Re7 {[%clk 0:00:14]} 26. b3 {[%clk 0:01:25]}  Rae8 {[%clk 0:00:14]} 27. c4 {[%clk 0:01:25]}  Bf7 {[%clk 0:00:15]} 28. Kb2 {[%clk 0:01:24]}  h5 {[%clk 0:00:14]} 29. Rhd1 {[%clk 0:01:21]}  Re2 {[%clk 0:00:14]} 30. Bxa7 {[%clk 0:01:21]}  g5 {[%clk 0:00:13]} 31. a4 {[%clk 0:01:19]}  h4 {[%clk 0:00:10]} 32. a5 {[%clk 0:01:17]}  g4 {[%clk 0:00:09]} 33. fxg4 {[%clk 0:01:16]}  fxg4 {[%clk 0:00:10]} 34. a6 {[%clk 0:01:15]}  Rxd2 {[%clk 0:00:09]} 35. Rxd2 {[%clk 0:01:14]}  Ra8 {[%clk 0:00:10]} 36. Bf2 {[%clk 0:00:54]}  g3 {[%clk 0:00:08]} 37. Be1 {[%clk 0:00:53]}  Rxa6 {[%clk 0:00:08]} 38. Rd4 {[%clk 0:00:53]}  c5 {[%clk 0:00:03]} 39. Rxh4 {[%clk 0:00:53]}  Be8 {[%clk 0:00:02]} 40. Bxg3 {[%clk 0:00:53]}  Rg6 {[%clk 0:00:03]} 41. Bf2 {[%clk 0:00:52]}  Rxg2 {[%clk 0:00:03]} 42. Bxc5 {[%clk 0:00:52]}  Bg6 {[%clk 0:00:04]} 43. Ka3 {[%clk 0:00:51]}  Rxc2 {[%clk 0:00:04]} 44. Rh3 {[%clk 0:00:50]}  Kf7 {[%clk 0:00:05]} 45. Re3 {[%clk 0:00:50]}  Rg2 {[%clk 0:00:04]} 46. Kb4 {[%clk 0:00:50]}  Bc2 {[%clk 0:00:03]} 47. Kc3 {[%clk 0:00:50]}  Bd1 {[%clk 0:00:04]} 48. b4 {[%clk 0:00:34]}  Rg6 {[%clk 0:00:03]} 49. b5 {[%clk 0:00:34]}  Re6 {[%clk 0:00:03]} 50. Rd3 {[%clk 0:00:31]}  Be2 {[%clk 0:00:03]} 51. Rd4 {[%clk 0:00:31]}  Ke8 {[%clk 0:00:03]} 52. Kb4 {[%clk 0:00:31]}  Bf3 {[%clk 0:00:03]} 53. Ba7 {[%clk 0:00:28]}  Bb7 {[%clk 0:00:04]} 54. c5 {[%clk 0:00:28]}  Ba8 {[%clk 0:00:04]} 55. Ka5 {[%clk 0:00:28]}  Bf3 {[%clk 0:00:04]} 56. Bb8 {[%clk 0:00:27]}  Ke7 {[%clk 0:00:04]} 57. Bd6+ {[%clk 0:00:27]}  Ke8 {[%clk 0:00:04]} 58. c6 {[%clk 0:00:25]}  Bg2 {[%clk 0:00:03]} 59. Kb6 {[%clk 0:00:23]}  Kd8 {[%clk 0:00:03]} 60. Bc7+ {[%clk 0:00:22]}  Ke8 {[%clk 0:00:04]} 61. Rd8+ {[%clk 0:00:21]}  Ke7 {[%clk 0:00:04]} 62. Rd7+ {[%clk 0:00:21]}  Ke8 {[%clk 0:00:04]} 63. Bd6 {[%clk 0:00:21]}  Bf3 {[%clk 0:00:03]} 64. Bc5 {[%clk 0:00:20]}  Be4 {[%clk 0:00:03]} 65. Rd2 {[%clk 0:00:17]}  Bf3 {[%clk 0:00:02]} 66. Rf2 {[%clk 0:00:17]}  Rf6 {[%clk 0:00:01]} 67. Bd4 {[%clk 0:00:17]}  Rf5 {[%clk 0:00:02]} 68. Bc5 {[%clk 0:00:13]}  Be4 {[%clk 0:00:02]} 69. Rxf5 {[%clk 0:00:12]}  Bxf5 {[%clk 0:00:03]} 70. Kc7 {[%clk 0:00:13]}  Be6 {[%clk 0:00:03]} 71. b6 {[%clk 0:00:13]} 1-0


[Site "https://www.chess.com"]

[Event "Titled Tuesday Blitz May 31 Late 2022"]
[White "Sibilio, Mario"]
[Black "Hasangatin, Ramil"]
[WhiteFideId "800422"]
[BlackFideId "4122160"]
[WhiteElo "2296"]
[BlackElo "2399"]
[Result "0-1"]
[Round "01"]
[TimeControl "180+1"]
[Date "2022.06.01"]
[WhiteClock "0:00:01"]
[BlackClock "0:00:01"]

1. e4 {[%clk 0:02:57]}  d6 {[%clk 0:02:59]} 2. Nc3 {[%clk 0:02:56]}  Nf6 {[%clk 0:02:59]} 3. d4 {[%clk 0:02:53]}  e5 {[%clk 0:02:59]} 4. dxe5 {[%clk 0:02:45]}  dxe5 {[%clk 0:03:00]} 5. Qxd8+ {[%clk 0:02:45]}  Kxd8 {[%clk 0:03:01]} 6. Bc4 {[%clk 0:02:43]}  Be6 {[%clk 0:03:00]} 7. Bxe6 {[%clk 0:02:41]}  fxe6 {[%clk 0:03:01]} 8. f3 {[%clk 0:02:40]}  Bd6 {[%clk 0:03:01]} 9. Be3 {[%clk 0:02:39]}  Ke7 {[%clk 0:03:02]} 10. Nge2 {[%clk 0:02:38]}  Nc6 {[%clk 0:03:02]} 11. a3 {[%clk 0:02:37]}  a6 {[%clk 0:03:02]} 12. O-O-O {[%clk 0:02:34]}  h6 {[%clk 0:03:02]} 13. h4 {[%clk 0:02:32]}  Rhf8 {[%clk 0:03:02]} 14. h5 {[%clk 0:02:29]}  Rad8 {[%clk 0:02:57]} 15. Na4 {[%clk 0:02:27]}  Na5 {[%clk 0:02:53]} 16. Kb1 {[%clk 0:02:11]}  Nc4 {[%clk 0:02:53]} 17. Bc1 {[%clk 0:02:10]}  Nd7 {[%clk 0:02:51]} 18. Ka2 {[%clk 0:02:09]}  b5 {[%clk 0:02:51]} 19. Nac3 {[%clk 0:02:07]}  Rb8 {[%clk 0:02:47]} 20. b3 {[%clk 0:02:04]}  Na5 {[%clk 0:02:37]} 21. Rh3 {[%clk 0:01:59]}  Nc6 {[%clk 0:02:35]} 22. Rg3 {[%clk 0:01:57]}  Rf7 {[%clk 0:02:35]} 23. Be3 {[%clk 0:01:54]}  Nf6 {[%clk 0:02:32]} 24. Rh3 {[%clk 0:01:52]}  Nd8 {[%clk 0:02:18]} 25. Nc1 {[%clk 0:01:48]}  Nb7 {[%clk 0:02:17]} 26. a4 {[%clk 0:01:42]}  c6 {[%clk 0:02:06]} 27. Nd3 {[%clk 0:01:39]}  Nd7 {[%clk 0:02:04]} 28. Kb2 {[%clk 0:01:28]}  Na5 {[%clk 0:01:57]} 29. Kc1 {[%clk 0:01:24]}  Nb6 {[%clk 0:01:42]} 30. axb5 {[%clk 0:01:10]}  cxb5 {[%clk 0:01:39]} 31. Bc5 {[%clk 0:01:09]}  Bxc5 {[%clk 0:01:30]} 32. Nxc5 {[%clk 0:01:09]}  Rc8 {[%clk 0:01:26]} 33. b4 {[%clk 0:01:06]}  Nb7 {[%clk 0:01:24]} 34. Nxb7 {[%clk 0:01:04]}  Rxc3 {[%clk 0:01:25]} 35. Nc5 {[%clk 0:01:02]}  Rf8 {[%clk 0:01:13]} 36. Kb2 {[%clk 0:00:55]}  Rc4 {[%clk 0:01:12]} 37. Kb3 {[%clk 0:00:54]}  Rc8 {[%clk 0:01:11]} 38. Rg3 {[%clk 0:00:52]}  Na4 {[%clk 0:00:48]} 39. Rxg7+ {[%clk 0:00:50]}  Kf8 {[%clk 0:00:34]} 40. Nxe6+ {[%clk 0:00:47]}  Ke8 {[%clk 0:00:35]} 41. Rg8+ {[%clk 0:00:47]}  Ke7 {[%clk 0:00:34]} 42. Rxc8 {[%clk 0:00:46]}  Rxc8 {[%clk 0:00:35]} 43. Ng7 {[%clk 0:00:44]}  Rc3+ {[%clk 0:00:33]} 44. Ka2 {[%clk 0:00:42]}  Rxc2+ {[%clk 0:00:33]} 45. Kb1 {[%clk 0:00:42]}  Rxg2 {[%clk 0:00:31]} 46. Nf5+ {[%clk 0:00:42]}  Ke8 {[%clk 0:00:29]} 47. Rd6 {[%clk 0:00:40]}  Nc3+ {[%clk 0:00:23]} 48. Kc1 {[%clk 0:00:39]}  Na2+ {[%clk 0:00:22]} 49. Kd1 {[%clk 0:00:39]}  Nxb4 {[%clk 0:00:22]} 50. Rxh6 {[%clk 0:00:37]}  a5 {[%clk 0:00:23]} 51. Nd6+ {[%clk 0:00:35]}  Kf8 {[%clk 0:00:21]} 52. Nxb5 {[%clk 0:00:34]}  a4 {[%clk 0:00:21]} 53. Rf6+ {[%clk 0:00:31]}  Ke7 {[%clk 0:00:17]} 54. Rf5 {[%clk 0:00:29]}  Nd3 {[%clk 0:00:16]} 55. h6 {[%clk 0:00:27]}  Rh2 {[%clk 0:00:16]} 56. h7 {[%clk 0:00:24]}  Nb2+ {[%clk 0:00:14]} 57. Kc1 {[%clk 0:00:22]}  Nd3+ {[%clk 0:00:14]} 58. Kd1 {[%clk 0:00:22]}  Nb2+ {[%clk 0:00:11]} 59. Ke1 {[%clk 0:00:19]}  Nc4 {[%clk 0:00:11]} 60. f4 {[%clk 0:00:13]}  exf4 {[%clk 0:00:06]} 61. Rxf4 {[%clk 0:00:13]}  Rxh7 {[%clk 0:00:05]} 62. e5 {[%clk 0:00:13]}  Nb6 {[%clk 0:00:01]} 63. Rf6 {[%clk 0:00:09]}  Rh1+ {[%clk 0:00:02]} 64. Ke2 {[%clk 0:00:08]}  Nd5 {[%clk 0:00:03]} 65. Ra6 {[%clk 0:00:07]}  Rb1 {[%clk 0:00:02]} 66. Ra7+ {[%clk 0:00:02]}  Ke6 {[%clk 0:00:01]} 67. Nd4+ {[%clk 0:00:01]}  Kxe5 {[%clk 0:00:01]} 0-1


[Site "https://www.chess.com"]